bitfinex/quotes_SOLUSD_20230702
["timestamp","ask_amount","ask_price","bid_price","bid_amount"]
[1688282192922,22.17,19.08,19.07,19.47]
[1688282193130,22.17,19.08,19.071,22.179]
[1688282196520,126.31,19.08,19.067,25.81276763]
[1688282196828,22.17,19.08,19.064,104.226]
[1688282197025,22.17,19.08,19.07,22.18]
[1688282197934,55.0,19.079,19.064,57.122]
[1688282198247,22.176,19.075,19.067,22.183]
[1688282201523,22.176,19.075,19.067,79.297]
[1688282202621,22.175,19.076,19.067,79.297]
[1688282204232,79.262,19.076,19.059,57.136]
[1688282204439,19.65,19.07,19.062,22.189]
[1688282204622,22.184,19.068,19.062,22.189]
[1688282204934,22.184,19.068,19.061,22.191]
[1688282212037,79.295,19.068,19.052,90.3596]
[1688282212351,55.0,19.067,19.055,22.198]
[1688282212638,22.189,19.064,19.055,22.198]
[1688282216845,123.865,19.07,19.055,22.198]
[1688282217139,22.189,19.064,19.055,22.198]
[1688282217544,22.188,19.065,19.055,22.198]
[1688282219348,79.308,19.065,19.055,22.198]
[1688282219544,22.188,19.065,19.055,22.198]
[1688282225137,79.308,19.065,19.049,57.167]
[1688282225356,55.0,19.069,19.048,22.205]
[1688282225357,79.336,19.058,19.048,22.205]
[1688282225646,22.195,19.058,19.048,22.205]
[1688282225836,22.195,19.058,19.048,79.376]
[1688282226037,22.195,19.058,19.048,22.205]
[1688282227549,79.336,19.058,19.048,22.205]
[1688282230944,57.68337328,19.068,19.048,22.205]
[1688282230945,104.194,19.071,19.048,183.691]
[1688282231143,13.159604,19.07,19.05,98.23]
[1688282231342,13.159604,19.07,19.056,183.615]
[1688282231542,22.181,19.071,19.057,55.0]
[1688282231740,22.18,19.072,19.061,79.322]
[1688282232450,5.73879307,19.076,19.061,79.322]
[1688282232642,20.0,19.075,19.061,79.322]
[1688282233252,20.0,19.076,19.061,79.322]
[1688282233460,3.63365074,19.075,19.061,79.322]
[1688282233651,22.179,19.072,19.051,155.57540184]
[1688282233954,22.185,19.067,19.057,79.34]
[1688282234942,22.186,19.066,19.057,183.606]
[1688282235147,112.102,19.071,19.057,183.606]
[1688282235456,22.186,19.066,19.057,183.606]
[1688282235855,22.186,19.066,19.057,22.196]
[1688282245060,22.181,19.07,19.058,55.0]
[1688282245262,22.181,19.07,19.061,79.321]
[1688282246371,79.286,19.07,19.061,22.191]
[1688282246671,22.181,19.07,19.061,22.191]
[1688282248669,79.286,19.07,19.061,22.191]
[1688282250754,79.286,19.07,19.057,57.141]
[1688282250967,79.286,19.07,19.06,22.192]
[1688282255258,79.286,19.07,19.054,26.79627629]
[1688282255571,22.187,19.065,19.06,22.192]
[1688282256875,22.187,19.065,19.052,124.288]
[1688282257082,22.187,19.065,19.053,57.155]
[1688282257778,22.187,19.065,19.055,22.197]
[1688282258576,55.0,19.064,19.055,22.197]
[1688282258782,79.32,19.062,19.054,22.199]
[1688282258981,55.0,19.061,19.054,22.199]
[1688282259283,22.194,19.059,19.054,22.199]
[1688282261079,22.198,19.056,19.049,22.205]
[1688282261262,22.198,19.056,19.048,22.206]
[1688282261463,55.0,19.055,19.048,22.206]
[1688282261774,22.201,19.053,19.048,22.206]
[1688282265382,22.199,19.055,19.048,22.206]
[1688282281298,22.199,19.055,19.043,25.66741847]
[1688282281482,22.199,19.055,19.045,22.209]
[1688282288506,55.0,19.054,19.045,22.209]
[1688282288804,22.203,19.052,19.045,22.209]
[1688282292899,55.0,19.051,19.045,22.209]
[1688282293202,22.205,19.05,19.045,22.209]
[1688282293590,77.204,19.051,19.045,22.209]
[1688282294712,55.0,19.051,19.045,22.209]
[1688282294900,22.203,19.052,19.045,22.209]
[1688282295284,22.2,19.055,19.045,22.209]
[1688282295487,55.0,19.054,19.045,22.209]
[1688282295788,77.201,19.054,19.045,22.209]
[1688282298303,22.201,19.054,19.045,22.209]
[1688282299506,55.0,19.053,19.045,22.209]
[1688282299696,22.203,19.051,19.045,22.209]
[1688282316724,55.0,19.053,19.045,22.209]
[1688282316923,77.201,19.053,19.045,22.209]
[1688282321811,55.0,19.053,19.045,22.209]
[1688282322022,77.2,19.054,19.045,22.209]
[1688282322320,22.2,19.054,19.045,22.209]
[1688282323523,114.289,19.058,19.045,22.209]
[1688282323713,77.197,19.057,19.045,22.209]
[1688282324924,9.31579187,19.056,19.045,22.209]
[1688282325119,22.202,19.052,19.045,22.209]
[1688282325507,22.205,19.05,19.045,22.209]
[1688282325708,55.0,19.051,19.045,22.209]
[1688282325903,22.202,19.053,19.045,22.209]
[1688282326120,57.149,19.056,19.045,22.209]
[1688282326625,22.202,19.052,19.045,22.209]
[1688282327623,22.202,19.052,19.045,22.21]
[1688282327822,22.205,19.05,19.045,22.21]
[1688282328008,77.204,19.051,19.045,22.21]
[1688282328213,55.0,19.051,19.045,22.21]
[1688282329637,22.202,19.052,19.045,22.21]
[1688282331437,55.0,19.051,19.045,22.21]
[1688282331620,22.205,19.05,19.045,22.21]
[1688282332630,22.205,19.05,19.041,57.189]
[1688282332821,22.205,19.05,19.042,20.0]
[1688282333024,22.205,19.05,19.044,22.211]
[1688282334615,77.204,19.051,19.044,22.211]
[1688282335237,55.0,19.051,19.044,79.394]
[1688282335415,77.203,19.051,19.044,79.394]
[1688282335731,77.203,19.051,19.044,22.211]
[1688282336234,22.203,19.051,19.044,22.211]
[1688282337136,22.202,19.052,19.044,22.211]
[1688282337431,57.15,19.056,19.044,22.211]
[1688282337635,55.0,19.055,19.044,22.211]
[1688282338931,22.203,19.051,19.044,22.211]
[1688282340537,55.0,19.055,19.044,22.211]
[1688282340724,22.203,19.052,19.044,22.211]
[1688282341425,55.0,19.055,19.044,22.211]
[1688282341822,22.2,19.054,19.044,22.211]
[1688282342140,55.0,19.053,19.044,22.211]
[1688282342332,22.199,19.055,19.044,22.211]
[1688282342540,22.198,19.056,19.044,22.211]
[1688282343626,55.0,19.055,19.044,22.211]
[1688282343938,22.2,19.054,19.044,22.211]
[1688282344246,55.0,19.055,19.044,22.211]
[1688282344533,77.199,19.055,19.044,22.211]
[1688282350642,55.0,19.055,19.044,22.211]
[1688282350932,77.199,19.055,19.044,22.211]
[1688282351941,22.199,19.055,19.044,22.211]
[1688282359632,55.0,19.054,19.044,22.211]
[1688282360045,77.2,19.054,19.044,22.211]
[1688282362049,22.2,19.054,19.044,22.211]
[1688282366149,55.0,19.053,19.044,22.211]
[1688282366449,22.203,19.052,19.044,22.211]
[1688282367452,55.0,19.051,19.044,22.211]
[1688282367750,77.203,19.051,19.044,22.211]
[1688282368149,55.0,19.051,19.044,22.211]
[1688282370960,77.203,19.051,19.044,22.211]
[1688282375049,55.0,19.051,19.044,22.211]
[1688282375642,77.203,19.051,19.042,20.0]
[1688282375844,134.365,19.051,19.042,22.213]
[1688282376060,77.203,19.051,19.042,22.213]
[1688282383959,55.0,19.051,19.042,22.213]
[1688282384670,22.205,19.05,19.042,22.213]
[1688282384956,55.0,19.051,19.042,22.213]
[1688282385856,77.203,19.051,19.042,22.213]
[1688282386154,55.0,19.051,19.042,22.213]
[1688282387866,77.203,19.051,19.042,22.213]
[1688282389651,55.0,19.051,19.042,126.561]
[1688282389855,55.0,19.051,19.042,22.213]
[1688282390053,77.204,19.051,19.042,126.561]
[1688282390258,77.204,19.051,19.042,22.213]
[1688282391053,77.204,19.051,19.042,79.402]
[1688282393665,55.0,19.051,19.042,79.402]
[1688282393876,77.203,19.052,19.042,79.402]
[1688282401075,55.0,19.052,19.042,79.402]
[1688282401260,77.202,19.052,19.042,79.402]
[1688282402181,22.202,19.052,19.042,79.402]
[1688282402383,22.202,19.053,19.042,79.402]
[1688282403479,55.0,19.052,19.042,79.402]
[1688282403685,22.203,19.051,19.042,79.402]
[1688282404181,55.0,19.05,19.042,79.402]
[1688282404358,22.205,19.05,19.042,22.213]
[1688282404874,22.204,19.051,19.042,22.213]
[1688282405068,55.0,19.05,19.042,22.213]
[1688282406865,22.204,19.051,19.042,22.213]
[1688282407061,57.144,19.058,19.042,22.213]
[1688282407269,66.29381916,19.057,19.042,22.213]
[1688282407468,88.49081916,19.057,19.042,22.213]
[1688282409788,97.33939418,19.057,19.042,22.213]
[1688282410179,88.49081916,19.057,19.041,20.0]
[1688282410390,8.84857502,19.056,19.041,42.214]
[1688282410691,79.362,19.052,19.041,42.214]
[1688282410990,22.207,19.048,19.041,42.214]
[1688282414090,22.205,19.05,19.041,42.214]
[1688282414390,77.204,19.051,19.041,42.214]
[1688282414579,22.204,19.05,19.041,42.214]
[1688282414881,42.214,19.055,19.041,42.214]
[1688282415068,22.204,19.051,19.041,42.214]
[1688282418908,55.0,19.05,19.041,42.214]
[1688282419081,22.207,19.048,19.041,42.214]
[1688282423592,55.0,19.055,19.041,203.759]
[1688282423776,104.257,19.059,19.041,203.759]
[1688282424094,22.199,19.055,19.041,203.759]
[1688282426283,55.0,19.054,19.041,203.759]
[1688282426483,22.204,19.051,19.041,203.759]
[1688282432902,55.0,19.054,19.041,203.759]
[1688282433097,22.201,19.053,19.041,203.759]
[1688282433791,22.201,19.053,19.041,42.214]
[1688282444012,55.0,19.052,19.041,42.214]
[1688282444213,22.206,19.049,19.041,42.214]
[1688282444518,55.0,19.052,19.041,42.214]
[1688282444712,55.0,19.053,19.041,42.214]
[1688282445909,22.205,19.05,19.041,42.214]
[1688282451421,55.0,19.049,19.041,42.214]
[1688282451618,22.208,19.047,19.041,42.214]
[1688282452318,55.0,19.049,19.041,42.214]
[1688282452616,22.204,19.051,19.041,42.214]
[1688282455501,55.0,19.056,19.041,42.214]
[1688282455710,22.202,19.052,19.041,42.214]
[1688282458021,55.0,19.051,19.041,42.214]
[1688282458220,22.206,19.049,19.041,42.214]
[1688282459328,55.0,19.051,19.041,203.759]
[1688282459625,22.205,19.05,19.041,99.406]
[1688282459824,22.207,19.048,19.041,99.406]
[1688282460607,22.207,19.048,19.041,42.214]
[1688282460806,55.0,19.051,19.041,99.406]
[1688282461008,22.206,19.049,19.041,99.406]
[1688282461238,22.206,19.049,19.041,42.214]
[1688282461726,55.0,19.051,19.041,146.567]
[1688282461926,22.206,19.049,19.041,42.214]
[1688282462325,55.0,19.051,19.041,42.214]
[1688282462514,22.204,19.05,19.041,42.214]
[1688282463015,77.203,19.051,19.041,42.214]
[1688282463219,55.0,19.051,19.041,42.214]
[1688282463722,22.204,19.05,19.041,42.214]
[1688282464119,55.0,19.051,19.041,42.214]
[1688282465832,22.205,19.05,19.041,42.214]
[1688282472738,55.0,19.051,19.041,42.214]
[1688282472927,77.204,19.051,19.041,42.214]
[1688282474324,238.664,19.051,19.041,42.214]
[1688282474534,22.207,19.048,19.041,42.214]
[1688282474837,22.206,19.049,19.041,42.214]
[1688282475138,55.0,19.051,19.041,146.567]
[1688282475520,22.205,19.05,19.041,146.567]
[1688282475741,77.204,19.051,19.041,146.567]
[1688282476241,55.0,19.055,19.041,146.567]
[1688282476453,76.655,19.07,19.042,48.54048426]
[1688282476738,19.55,19.07,19.052,183.652]
[1688282476930,76.655,19.072,19.064,79.308]
[1688282477332,22.176,19.074,19.064,79.308]
[1688282478523,22.18,19.071,19.064,79.308]
[1688282479334,55.0,19.073,19.064,79.308]
[1688282479543,22.18,19.072,19.064,79.308]
[1688282479737,57.082,19.078,19.064,79.308]
[1688282480043,7.54951959,19.077,19.064,79.308]
[1688282480337,8.64254457,19.078,19.064,79.308]
[1688282480838,22.176,19.075,19.064,79.308]
[1688282482137,22.173,19.077,19.069,79.288]
[1688282482722,22.173,19.078,19.07,19.64]
[1688282482921,22.173,19.078,19.072,22.178]
[1688282483429,22.172,19.078,19.072,22.178]
[1688282483636,57.067,19.083,19.072,22.178]
[1688282483637,1.37940242,19.083,19.072,22.178]
[1688282483923,2.99992183,19.102,19.076,183.423]
[1688282483924,19.59,19.1,19.076,183.423]
[1688282484130,19.59,19.1,19.086,79.219]
[1688282484330,22.149,19.098,19.086,79.219]
[1688282484538,2.99992183,19.112,19.086,79.219]
[1688282484539,123.53,19.11,19.09,19.55]
[1688282484733,3.40434672,19.109,19.096,22.151]
[1688282484938,56.979,19.113,19.096,22.151]
[1688282485239,103.959,19.114,19.096,22.151]
[1688282485240,22.137,19.109,19.096,22.151]
[1688282485621,22.137,19.109,19.092,94.6639]
[1688282485828,126.119,19.109,19.098,22.147]
[1688282486023,22.137,19.109,19.095,22.151]
[1688282486723,22.137,19.109,19.09,19.59]
[1688282486922,1.98302032,19.108,19.092,22.154]
[1688282487129,22.142,19.104,19.092,22.154]
[1688282488827,22.154,19.109,19.092,22.154]
[1688282489026,22.139,19.107,19.092,22.154]
[1688282489227,22.135,19.11,19.099,79.164]
[1688282489428,56.967,19.117,19.099,79.164]
[1688282489655,20.0,19.116,19.099,79.164]
[1688282490027,22.154,19.114,19.104,183.152]
[1688282490350,22.112,19.13,19.105,94.62977011]
[1688282490532,22.112,19.13,19.117,22.126]
[1688282490840,41.702,19.13,19.117,22.126]
[1688282491050,41.702,19.13,19.11,123.523]
[1688282491051,41.702,19.13,19.11,56.983]
[1688282491229,40.702,19.13,19.116,22.127]
[1688282492346,21.112,19.13,19.116,22.127]
[1688282492744,40.642,19.13,19.116,22.127]
[1688282493049,97.563,19.13,19.116,22.127]
[1688282493965,97.563,19.13,19.116,79.094]
[1688282494241,97.568,19.13,19.109,103.982]
[1688282494427,97.568,19.13,19.116,22.127]
[1688282495941,78.038,19.13,19.116,22.127]
[1688282496340,75.0,19.129,19.104,104.005]
[1688282496537,75.0,19.129,19.099,123.23328854]
[1688282496538,39.1,19.12,19.101,9.46004219]
[1688282496738,79.103,19.115,19.099,57.017]
[1688282496947,19.53,19.11,19.089,57.045]
[1688282497143,79.146,19.104,19.091,22.156]
[1688282497546,79.146,19.104,19.081,97.1915]
[1688282497547,55.0,19.103,19.081,97.1915]
[1688282497745,79.174,19.097,19.082,5.16904091]
[1688282497949,79.174,19.097,19.081,22.167]
[1688282497950,183.221,19.097,19.07,19.55]
[1688282498145,77.78504363,19.096,19.073,57.096]
[1688282498354,183.297,19.09,19.073,57.096]
[1688282498652,22.164,19.085,19.076,22.173]
[1688282499155,55.0,19.084,19.076,22.173]
[1688282499357,22.167,19.082,19.076,22.173]
[1688282500158,22.167,19.082,19.074,22.175]
[1688282500451,22.167,19.083,19.074,22.175]
[1688282500641,57.058,19.086,19.074,22.175]
[1688282500842,22.166,19.083,19.074,79.268]
[1688282501254,22.166,19.083,19.074,22.175]
[1688282501482,55.0,19.082,19.074,22.175]
[1688282501750,22.17,19.08,19.074,22.175]
[1688282503749,22.17,19.08,19.073,22.177]
[1688282503948,22.17,19.08,19.074,22.176]
[1688282504142,22.17,19.08,19.066,104.212]
[1688282504464,22.166,19.084,19.074,79.269]
[1688282505150,79.229,19.084,19.074,22.176]
[1688282505356,22.169,19.081,19.074,22.176]
[1688282506149,22.168,19.082,19.074,22.176]
[1688282508946,22.163,19.086,19.074,126.349]
[1688282509946,161.116,19.092,19.074,126.349]
[1688282510147,22.161,19.087,19.075,55.0]
[1688282510363,22.161,19.087,19.078,79.25]
[1688282510667,57.039,19.092,19.078,79.25]
[1688282511054,22.158,19.09,19.078,79.25]
[1688282514651,57.041,19.095,19.078,79.25]
[1688282514860,91.7801,19.109,19.08,19.54]
[1688282515063,104.025,19.102,19.088,22.159]
[1688282515359,57.016,19.1,19.088,22.159]
[1688282515543,161.035,19.102,19.088,22.159]
[1688282515748,22.146,19.1,19.088,22.159]
[1688282516553,22.146,19.1,19.088,126.255]
[1688282516766,79.161,19.1,19.088,126.255]
[1688282516964,22.147,19.1,19.09,19.54]
[1688282517268,22.147,19.1,19.093,22.154]
[1688282517467,22.146,19.101,19.093,22.154]
[1688282517960,160.999,19.106,19.093,22.154]
[1688282518458,22.136,19.109,19.098,183.21]
[1688282518661,22.136,19.11,19.102,22.144]
[1688282520065,22.136,19.11,19.101,57.01]
[1688282520066,22.136,19.11,19.101,22.145]
[1688282521869,126.112,19.11,19.09,19.45]
[1688282522074,55.0,19.109,19.091,20.0]
[1688282522271,22.142,19.104,19.098,22.148]
[1688282522476,22.142,19.104,19.097,22.149]
[1688282523358,22.142,19.104,19.095,22.151]
[1688282523553,55.0,19.103,19.091,20.0]
[1688282523759,22.147,19.1,19.091,20.0]
[1688282524168,22.147,19.1,19.093,22.153]
[1688282525260,55.0,19.099,19.091,22.155]
[1688282525561,22.15,19.097,19.091,22.155]
[1688282526270,22.15,19.097,19.09,22.157]
[1688282526464,22.15,19.097,19.089,22.158]
[1688282526664,22.15,19.097,19.088,22.159]
[1688282527472,22.15,19.097,19.085,22.163]
[1688282527663,55.0,19.096,19.085,22.163]
[1688282527857,22.155,19.093,19.085,22.163]
[1688282528057,55.0,19.092,19.084,22.164]
[1688282528271,22.158,19.09,19.084,22.164]
[1688282528474,79.203,19.09,19.083,22.165]
[1688282528662,79.203,19.09,19.071,93.3779]
[1688282528663,55.0,19.089,19.071,93.3779]
[1688282528858,55.0,19.089,19.078,22.171]
[1688282529062,22.162,19.087,19.078,79.252]
[1688282530253,79.216,19.087,19.077,22.172]
[1688282530458,55.0,19.086,19.076,22.174]
[1688282530659,22.166,19.083,19.075,22.174]
[1688282530877,22.166,19.083,19.072,20.0]
[1688282531058,55.0,19.082,19.073,22.177]
[1688282531260,22.17,19.08,19.073,22.177]
[1688282532374,22.166,19.084,19.073,22.177]
[1688282532573,57.052,19.088,19.073,22.177]
[1688282532761,55.0,19.087,19.073,22.177]
[1688282533261,77.162,19.087,19.073,22.177]
[1688282534772,22.162,19.087,19.073,22.177]
[1688282534978,22.162,19.087,19.074,55.0]
[1688282535171,22.162,19.087,19.077,79.253]
[1688282535777,22.162,19.087,19.077,22.172]
[1688282536079,55.0,19.086,19.077,22.172]
[1688282536276,22.165,19.084,19.077,22.172]
[1688282540681,55.0,19.083,19.071,57.102]
[1688282540882,22.17,19.08,19.075,22.175]
[1688282542278,55.0,19.083,19.075,22.175]
[1688282542581,22.17,19.08,19.075,22.175]
[1688282542779,77.171,19.079,19.075,22.175]
[1688282543083,22.171,19.079,19.075,22.175]
[1688282543382,104.092,19.089,19.075,22.175]
[1688282543567,22.164,19.085,19.075,22.175]
[1688282545068,22.168,19.082,19.075,22.175]
[1688282546878,55.0,19.081,19.075,22.175]
[1688282547182,77.169,19.081,19.075,22.175]
[1688282547383,22.169,19.081,19.075,22.175]
[1688282547586,22.168,19.081,19.075,22.175]
[1688282547784,180.73,19.09,19.075,22.175]
[1688282548084,123.64,19.09,19.075,22.175]
[1688282548380,22.165,19.085,19.075,22.175]
[1688282549385,55.0,19.084,19.075,22.175]
[1688282549688,22.166,19.083,19.075,22.175]
[1688282549883,57.05,19.089,19.075,22.175]
[1688282550186,22.166,19.083,19.075,22.175]
[1688282553274,22.166,19.083,19.072,20.0]
[1688282553674,22.166,19.083,19.066,57.116]
[1688282553875,75.0,19.082,19.066,57.116]
[1688282554172,22.173,19.078,19.068,22.182]
[1688282554378,55.0,19.077,19.068,22.182]
[1688282554580,22.176,19.075,19.068,22.182]
[1688282554891,55.0,19.074,19.064,57.122]
[1688282555086,104.15,19.079,19.063,93.8231]
[1688282555087,124.13,19.082,19.068,22.183]
[1688282555385,22.176,19.075,19.068,22.183]
[1688282556392,22.175,19.076,19.068,22.183]
[1688282559891,22.175,19.076,19.066,22.184]
[1688282561291,22.175,19.076,19.063,10.83719922]
[1688282561677,22.175,19.076,19.066,22.185]
[1688282562379,55.0,19.075,19.066,22.185]
[1688282562580,55.0,19.075,19.063,10.83719922]
[1688282562581,22.178,19.073,19.063,10.83719922]
[1688282563085,22.178,19.073,19.064,22.188]
[1688282564576,22.188,19.081,19.064,79.311]
[1688282564795,79.261,19.076,19.064,79.311]
[1688282565484,22.174,19.076,19.064,79.311]
[1688282565685,22.174,19.076,19.064,22.188]
[1688282566495,22.179,19.072,19.064,22.188]
[1688282568888,22.178,19.073,19.064,22.188]
[1688282569087,57.075,19.08,19.064,22.188]
[1688282569402,55.0,19.079,19.064,22.188]
[1688282569701,22.177,19.074,19.064,22.188]
[1688282573684,79.27,19.074,19.064,22.188]
[1688282573891,22.177,19.074,19.064,22.188]
[1688282574301,161.255,19.076,19.064,22.188]
[1688282574302,57.087,19.076,19.064,126.415]
[1688282574488,22.178,19.073,19.064,22.188]
[1688282575498,22.178,19.073,19.057,26.63650229]
[1688282575499,55.0,19.072,19.052,90.1356]
[1688282575684,22.186,19.066,19.058,22.195]
[1688282575885,22.186,19.066,19.052,194.4266]
[1688282575886,22.186,19.066,19.057,22.195]
[1688282576597,22.186,19.066,19.052,90.1356]
[1688282576598,22.186,19.066,19.054,22.199]
[1688282576808,79.322,19.062,19.053,22.2]
[1688282577793,79.322,19.062,19.044,91.9717]
[1688282577989,22.191,19.062,19.055,22.198]
[1688282578187,22.191,19.062,19.048,10.83719922]
[1688282578385,22.191,19.062,19.052,79.36]
[1688282578784,97.9554,19.069,19.052,79.36]
[1688282579000,22.191,19.062,19.052,22.201]
[1688282579189,55.0,19.068,19.052,126.494]
[1688282579190,22.189,19.064,19.052,126.494]
[1688282579391,79.312,19.064,19.052,22.201]
[1688282581708,55.0,19.068,19.049,75.0]
[1688282581893,79.312,19.064,19.052,22.201]
[1688282583403,22.189,19.064,19.052,22.201]
[1688282585309,22.189,19.064,19.05,22.204]
[1688282585611,55.0,19.063,19.052,22.202]
[1688282585812,22.193,19.06,19.052,22.202]
[1688282589610,22.193,19.06,19.043,104.338]
[1688282589611,55.0,19.059,19.043,104.338]
[1688282589810,22.199,19.055,19.05,22.204]
[1688282590111,104.248,19.061,19.051,22.203]
[1688282590112,22.198,19.056,19.051,22.203]
[1688282590696,19.43,19.07,19.051,22.203]
[1688282590998,22.183,19.069,19.052,75.0]
[1688282591305,22.181,19.071,19.057,183.605]
[1688282591521,22.181,19.071,19.052,75.0]
[1688282591522,22.181,19.07,19.062,79.316]
[1688282591700,57.088,19.076,19.062,79.316]
[1688282592008,93.8758,19.079,19.062,79.316]
[1688282592208,22.175,19.076,19.063,55.0]
[1688282592508,22.175,19.076,19.071,22.18]
[1688282594408,22.175,19.076,19.065,57.117]
[1688282595710,79.262,19.076,19.068,22.183]
[1688282596415,183.424,19.076,19.067,22.184]
[1688282597913,79.262,19.076,19.067,22.184]
[1688282599710,22.175,19.076,19.067,22.184]
[1688282600207,79.262,19.076,19.067,22.184]
[1688282601413,22.175,19.076,19.067,22.184]
[1688282601709,57.078,19.084,19.067,22.184]
[1688282601911,22.171,19.079,19.067,183.509]
[1688282602210,22.171,19.079,19.067,22.184]
[1688282613918,22.171,19.079,19.067,79.298]
[1688282614603,22.171,19.079,19.067,22.184]
[1688282615616,22.171,19.079,19.063,22.188]
[1688282615816,183.446,19.074,19.063,22.188]
[1688282616708,183.446,19.074,19.063,22.189]
[1688282617514,79.271,19.074,19.063,22.189]
[1688282621334,183.444,19.074,19.063,22.189]
[1688282621725,79.271,19.074,19.063,22.189]
[1688282623722,22.177,19.074,19.063,22.189]
[1688282624919,79.27,19.074,19.063,22.189]
[1688282627834,22.177,19.074,19.063,22.189]
[1688282628036,22.176,19.075,19.064,55.0]
[1688282628222,22.176,19.075,19.067,22.184]
[1688282628426,22.176,19.075,19.066,22.185]
[1688282629918,22.176,19.075,19.064,22.187]
[1688282630120,55.0,19.074,19.062,22.19]
[1688282630334,79.282,19.071,19.063,22.188]
[1688282630533,55.0,19.07,19.062,22.19]
[1688282630735,22.184,19.068,19.062,22.19]
[1688282631729,57.095,19.074,19.062,22.19]
[1688282631929,57.086,19.077,19.062,126.428]
[1688282632931,22.177,19.074,19.062,126.428]
[1688282633636,195.4492,19.079,19.062,126.428]
[1688282633938,195.4492,19.079,19.067,183.504]
[1688282633939,113.4742,19.079,19.067,183.504]
[1688282634126,79.249,19.079,19.067,22.183]
[1688282634932,55.0,19.078,19.067,22.183]
[1688282635139,22.175,19.075,19.067,22.183]
[1688282635526,22.175,19.075,19.06,123.897]
[1688282635743,22.175,19.075,19.061,75.0]
[1688282636048,55.0,19.074,19.065,22.187]
[1688282636247,22.179,19.072,19.065,22.187]
[1688282641142,22.179,19.072,19.06,130.34160799]